fUSD/lending_fUSD_20260529
["ID","MTS","AMOUNT","RATE_DAILY","PERIOD"]
[423280026,1780019435000,-500.0,0.00014999,2]
[423280054,1780019435000,-500.0,0.00014999,2]
[423280034,1780019435000,-500.0,0.00014999,2]
[423280031,1780019435000,-500.0,0.00014999,2]
[423280035,1780019435000,-500.0,0.00014999,2]
[423280033,1780019435000,-500.0,0.00014999,2]
[423280036,1780019435000,-500.0,0.00014999,2]
[423280041,1780019435000,-500.0,0.00014999,2]
[423280040,1780019435000,-500.0,0.00014999,2]
[423280037,1780019435000,-500.0,0.00014999,2]
[423280039,1780019435000,-1092.26222106,0.00014999,5]
[423280038,1780019435000,-595.3196255,0.00014999,2]
[423280032,1780019435000,-500.0,0.00014999,2]
[423280042,1780019435000,-500.0,0.00014999,2]
[423280044,1780019435000,-500.0,0.00014999,2]
[423280047,1780019435000,-249.66568301,0.00014999,2]
[423280052,1780019435000,-500.0,0.00014999,2]
[423280045,1780019435000,-500.0,0.00014999,2]
[423280049,1780019435000,-500.0,0.00014999,2]
[423280050,1780019435000,-500.0,0.00014999,2]
[423280046,1780019435000,-500.0,0.00014999,2]
[423280048,1780019435000,-500.0,0.00014999,2]
[423280051,1780019435000,-500.0,0.00014999,2]
[423280053,1780019435000,-400.88786271,0.00014999,2]
[423280043,1780019435000,-500.0,0.00014999,2]
[423280082,1780019435000,-500.0,0.00014999,2]
[423280095,1780019436000,-500.0,0.00014999,2]
[423280103,1780019436000,-500.0,0.00014999,2]
[423280106,1780019436000,-500.0,0.00014999,2]
[423280104,1780019436000,-500.0,0.00014999,2]
[423280108,1780019436000,-500.0,0.00014999,2]
[423280100,1780019436000,-500.0,0.00014999,2]
[423280102,1780019436000,-500.0,0.00014999,2]
[423280101,1780019436000,-348.3136908,0.00014999,2]
[423280098,1780019436000,-500.0,0.00014999,2]
[423280096,1780019436000,-500.0,0.00014999,2]
[423280091,1780019436000,-500.0,0.00014999,2]
[423280097,1780019436000,-500.0,0.00014999,2]
[423280094,1780019436000,-500.0,0.00014999,2]
[423280093,1780019436000,-500.0,0.00014999,2]
[423280088,1780019436000,-500.0,0.00014999,2]
[423280090,1780019436000,-500.0,0.00014999,2]
[423280089,1780019436000,-500.0,0.00014999,2]
[423280084,1780019436000,-500.0,0.00014999,2]
[423280087,1780019436000,-500.0,0.00014999,2]
[423280086,1780019436000,-500.0,0.00014999,2]
[423280085,1780019436000,-500.0,0.00014999,2]
[423280105,1780019436000,-500.0,0.00014999,2]
[423280092,1780019436000,-500.0,0.00014999,2]
[423280107,1780019436000,-500.0,0.00014999,2]
[423280121,1780019436000,-500.0,0.00014999,4]
[423280109,1780019436000,-500.0,0.00014999,2]
[423280099,1780019436000,-593.55,0.00014999,2]
[423280130,1780019436000,-300.0,0.00014999,2]
[423280128,1780019436000,-300.0,0.00014999,2]
[423280129,1780019436000,-666.0,0.00014999,2]
[423280125,1780019436000,-300.0,0.00014999,2]
[423280127,1780019436000,-300.0,0.00014999,2]
[423280131,1780019436000,-666.0,0.00014999,2]
[423280124,1780019436000,-666.0,0.00014999,2]
[423280132,1780019436000,-4662.0,0.00015,5]
[423280126,1780019436000,-300.0,0.00014999,2]
[423280122,1780019436000,-224.27540905,0.00014999,5]
[423280123,1780019436000,-300.0,0.00014999,2]
[423280117,1780019436000,-288.28618426,0.00014999,2]
[423280118,1780019436000,-524.63923841,0.00014999,2]
[423280116,1780019436000,-406.0981632,0.00014999,2]
[423280114,1780019436000,-500.0,0.00014999,2]
[423280113,1780019436000,-500.0,0.00014999,2]
[423280112,1780019436000,-500.0,0.00014999,2]
[423280111,1780019436000,-500.0,0.00014999,2]
[423280119,1780019436000,-500.0,0.00014999,2]
[423280120,1780019436000,-500.0,0.00014999,3]
[423280133,1780019436000,-35605.97384088,0.00015,2]
[423280110,1780019436000,-364.02,0.00014999,2]
[423280115,1780019436000,-500.0,0.00014999,2]
[423280179,1780019438000,-367.7,0.00015,2]
[423280177,1780019438000,-138639.54894281,0.00015,2]
[423280180,1780019438000,-301.31990001,0.00015,2]
[423280176,1780019438000,-135532.34354341,0.00015,2]
[423280181,1780019438000,-300.0,0.00015,2]
[423280178,1780019438000,-149490.40153336,0.00015,2]
[423280205,1780019440000,-500.0,0.00015,2]
[423280200,1780019440000,-500.0,0.00015,2]
[423280203,1780019440000,-500.0,0.00015,2]
[423280202,1780019440000,-500.0,0.00015,2]
[423280231,1780019440000,-1000.0,0.00015,2]
[423280201,1780019440000,-500.0,0.00015,2]
[423280211,1780019440000,-151.0,0.00015,2]
[423280210,1780019440000,-151.0,0.00015,2]
[423280219,1780019440000,-1000.0,0.00015,2]
[423280218,1780019440000,-1000.0,0.00015,2]
[423280221,1780019440000,-1000.0,0.00015,2]
[423280212,1780019440000,-151.0,0.00015,2]
[423280216,1780019440000,-151.0,0.00015,2]
[423280220,1780019440000,-1000.0,0.00015,2]
[423280213,1780019440000,-151.0,0.00015,2]
[423280215,1780019440000,-169.431491,0.00015,2]
[423280214,1780019440000,-151.0,0.00015,2]
[423280223,1780019440000,-1000.0,0.00015,2]
[423280204,1780019440000,-500.0,0.00015,2]
[423280217,1780019440000,-203.003435,0.00015,2]
[423280206,1780019440000,-500.0,0.00015,2]
[423280189,1780019440000,-500.0,0.00014999,2]
[423280208,1780019440000,-500.0,0.00015,2]
[423280225,1780019440000,-432.54,0.00015,2]
[423280182,1780019440000,-500.0,0.00014999,2]
[423280183,1780019440000,-132.64965167,0.00014999,2]
[423280184,1780019440000,-367.35034833,0.00014999,2]
[423280186,1780019440000,-148.63646175,0.00014999,2]
[423280185,1780019440000,-351.36353825,0.00014999,2]
[423280187,1780019440000,-500.0,0.00014999,2]
[423280188,1780019440000,-500.0,0.00014999,2]
[423280197,1780019440000,-500.0,0.00015,2]
[423280190,1780019440000,-5980.17863825,0.00015,2]
[423280191,1780019440000,-3004.30806817,0.00015,2]
[423280195,1780019440000,-4946503.84726192,0.00015,2]
[423280192,1780019440000,-1109995.54547942,0.00015,2]
[423280194,1780019440000,-445700.50243843,0.00015,2]
[423280193,1780019440000,-3148.01598596,0.00015,14]
[423280196,1780019440000,-500.0,0.00015,2]
[423280199,1780019440000,-500.0,0.00015,2]
[423280207,1780019440000,-500.0,0.00015,2]
[423280198,1780019440000,-500.0,0.00015,2]
[423280209,1780019440000,-322.594254,0.00015,2]
[423280234,1780019440000,-1000.0,0.00015,2]
[423280255,1780019440000,-2000.0,0.00015,2]
[423280226,1780019440000,-262.41,0.00015,2]
[423280253,1780019440000,-151.0,0.00015,2]
[423280252,1780019440000,-151.79241085,0.00015,2]
[423280257,1780019440000,-555.19779,0.00015,2]
[423280251,1780019440000,-231.1569584,0.00015,2]
[423280248,1780019440000,-1127.8501286,0.00015,2]
[423280259,1780019440000,-1273.277115,0.00015,2]
[423280267,1780019440000,-300.0,0.00015067,2]
[423280258,1780019440000,-555.19779,0.00015,2]
[423280268,1780019440000,-300.0,0.00015067,2]
[423280263,1780019440000,-151.0,0.00015,2]
[423280261,1780019440000,-1273.277115,0.00015,2]
[423280262,1780019440000,-1273.277115,0.00015,2]
[423280264,1780019440000,-6111.0,0.0001502,2]
[423280265,1780019440000,-152.0,0.00015027,43]
[423280266,1780019440000,-822.16435944,0.00015053,2]
[423280269,1780019440000,-300.0,0.00015067,2]
[423280270,1780019440000,-300.0,0.00015067,2]
[423280271,1780019440000,-300.0,0.00015067,2]
[423280232,1780019440000,-1000.0,0.00015,2]
[423280254,1780019440000,-151.0,0.00015,2]
[423280256,1780019440000,-555.19779,0.00015,2]
[423280260,1780019440000,-1273.277115,0.00015,2]
[423280249,1780019440000,-154.06251187,0.00015,2]
[423280233,1780019440000,-1000.0,0.00015,2]
[423280250,1780019440000,-153.0,0.00015,2]
[423280222,1780019440000,-1000.0,0.00015,2]
[423280224,1780019440000,-1000.0,0.00015,2]
[423280230,1780019440000,-3265.75,0.00015,2]
[423280229,1780019440000,-283.74,0.00015,2]
[423280227,1780019440000,-4378.0566166,0.00015,2]
[423280237,1780019440000,-1000.0,0.00015,2]
[423280238,1780019440000,-1000.0,0.00015,2]
[423280239,1780019440000,-1000.0,0.00015,2]
[423280228,1780019440000,-793070.8162068,0.00015,2]
[423280242,1780019440000,-1000.0,0.00015,2]
[423280236,1780019440000,-1000.0,0.00015,2]
[423280235,1780019440000,-1000.0,0.00015,2]
[423280240,1780019440000,-1000.0,0.00015,2]
[423280241,1780019440000,-1000.0,0.00015,2]
[423280244,1780019440000,-1000.0,0.00015,2]
[423280245,1780019440000,-13708.7875053,0.00015,2]
[423280246,1780019440000,-1000.0,0.00015,2]
[423280243,1780019440000,-1000.0,0.00015,2]
[423280247,1780019440000,-1000.0,0.00015,2]
[423280302,1780019441000,-152.0,0.00015491,50]
[423280310,1780019441000,-350.0,0.00015634,2]
[423280308,1780019441000,-152.0,0.00015623,52]
[423280306,1780019441000,-346.99,0.000156,14]
[423280304,1780019441000,-152.0,0.00015557,51]
[423280305,1780019441000,-350.0,0.00015571,2]
[423280300,1780019441000,-300.0,0.00015463,2]
[423280301,1780019441000,-7988.9,0.00015464,2]
[423280314,1780019441000,-309.0,0.000157,2]
[423280303,1780019441000,-350.0,0.00015493,2]
[423280313,1780019441000,-152.0,0.00015689,53]
[423280336,1780019441000,-300.0,0.00016,2]
[423280325,1780019441000,-3292.0,0.00015907,2]
[423280319,1780019441000,-152.0,0.00015822,55]
[423280327,1780019441000,-2000.0,0.00015913,2]
[423280329,1780019441000,-152.0,0.00015954,57]
[423280332,1780019441000,-224.23280446,0.00015954,5]
[423280321,1780019441000,-152.0,0.00015888,56]
[423280323,1780019441000,-193.8493153,0.000159,2]
[423280333,1780019441000,-409.58987295,0.00015956,2]
[423280338,1780019441000,-1448.19,0.00016,2]
[423280352,1780019441000,-9999.99,0.00016116,2]
[423280295,1780019441000,-153.3,0.000153,2]
[423280316,1780019441000,-152.0,0.00015756,54]
[423280291,1780019441000,-167.46,0.00015276,2]
[423280277,1780019441000,-5683.48727757,0.00015091,2]
[423280294,1780019441000,-1124.12,0.000153,2]
[423280276,1780019441000,-519.155344,0.00015068,2]
[423280273,1780019441000,-519.155344,0.00015068,2]
[423280278,1780019441000,-152.0,0.00015093,44]
[423280272,1780019441000,-900.0,0.00015068,2]
[423280274,1780019441000,-519.155344,0.00015068,2]
[423280275,1780019441000,-519.155344,0.00015068,2]
[423280283,1780019441000,-300.0,0.00015167,2]
[423280288,1780019441000,-350.0,0.00015217,2]
[423280286,1780019441000,-10000.0,0.00015185,2]
[423280280,1780019441000,-785.86,0.00015132,2]
[423280282,1780019441000,-152.0,0.0001516,45]
[423280299,1780019441000,-152.0,0.00015425,49]
[423280279,1780019441000,-2000.0,0.000151,2]
[423280284,1780019441000,-666.0,0.00015167,2]
[423280289,1780019441000,-152.0,0.00015226,46]
[423280281,1780019441000,-825.84674796,0.00015153,2]
[423280285,1780019441000,-15000.0,0.00015168,2]
[423280353,1780019441000,-415.3,0.00016116,2]
[423280290,1780019441000,-166.76,0.00015276,2]
[423280292,1780019441000,-152.0,0.00015292,47]
[423280293,1780019441000,-343.54,0.000153,2]
[423280298,1780019441000,-350.0,0.00015403,2]
[423280297,1780019441000,-152.0,0.00015358,48]
[423280296,1780019441000,-350.0,0.0001532,2]
[423280287,1780019441000,-2000.0,0.000152,2]
[423280340,1780019441000,-151.0,0.00016,4]
[423280421,1780019441000,-155.53,0.00016438,10]
[423280358,1780019441000,-350.0,0.00016156,2]
[423280407,1780019441000,-151.0,0.00016438,2]
[423280409,1780019441000,-4101.394339,0.00016438,2]
[423280411,1780019441000,-4101.394339,0.00016438,2]
[423280413,1780019441000,-4101.394339,0.00016438,2]
[423280420,1780019441000,-899.662535,0.00016438,2]
[423280423,1780019441000,-245.0,0.00016438,2]
[423280422,1780019441000,-151.0,0.00016438,2]
[423280415,1780019441000,-4101.394339,0.00016438,2]
[423280417,1780019441000,-899.662535,0.00016438,2]
[423280419,1780019441000,-899.662535,0.00016438,2]
[423280418,1780019441000,-899.662535,0.00016438,2]
[423280403,1780019441000,-256.33511515,0.00016438,2]
[423280426,1780019441000,-3265.75,0.000167,2]
[423280427,1780019441000,-151.98,0.00016712,2]
[423280429,1780019441000,-300.0,0.00016921,2]
[423280431,1780019441000,-300.0,0.00016921,2]
[423280425,1780019441000,-1705.01,0.000167,2]
[423280433,1780019441000,-300.0,0.00016921,2]
[423280430,1780019441000,-300.0,0.00016921,2]
[423280432,1780019441000,-300.0,0.00016921,2]
[423280434,1780019441000,-666.0,0.00016921,2]
[423280435,1780019441000,-151.0,0.00017,4]
[423280436,1780019441000,-1668.77,0.00017168,2]
[423280356,1780019441000,-9999.99,0.00016116,2]
[423280428,1780019441000,-785.86,0.00016813,2]
[423280399,1780019441000,-152.0,0.00016438,2]
[423280424,1780019441000,-192.4596493,0.00016506,2]
[423280405,1780019441000,-151.0,0.00016438,2]
[423280401,1780019441000,-152.0,0.00016438,2]
[423280359,1780019441000,-170.81500486,0.00016237,2]
[423280342,1780019441000,-299.99,0.00016116,4]
[423280344,1780019441000,-4999.99,0.00016116,2]
[423280350,1780019441000,-150.99,0.00016116,2]
[423280346,1780019441000,-1871.11,0.00016116,2]
[423280360,1780019441000,-350.0,0.00016389,2]
[423280362,1780019441000,-350.0,0.0001639,2]
[423280364,1780019441000,-350.0,0.00016398,2]
[423280373,1780019441000,-350.0,0.00016414,2]
[423280375,1780019441000,-971.31,0.00016436,2]
[423280378,1780019441000,-300.0,0.00016437,2]
[423280348,1780019441000,-9999.99,0.00016116,2]
[423280393,1780019441000,-152.0,0.00016438,2]
[423280397,1780019441000,-152.0,0.00016438,2]
[423280366,1780019441000,-1000.0,0.000164,2]
[423280395,1780019441000,-152.0,0.00016438,2]
[423280390,1780019441000,-152.0,0.00016438,2]
[423280386,1780019441000,-150.24455104,0.00016438,2]
[423280388,1780019441000,-900.0,0.00016438,2]
[423280371,1780019441000,-200.0,0.000164,2]
[423280368,1780019441000,-315.0,0.000164,2]
[423280380,1780019441000,-666.0,0.00016437,2]
[423280382,1780019441000,-8056.7,0.00016438,2]
[423280384,1780019441000,-462.0,0.00016438,2]
[423280481,1780019442000,-5128.21605464,0.000186,2]
[423280475,1780019442000,-167.89454849,0.00018407,30]
[423280478,1780019442000,-704.23141371,0.000185,2]
[423280472,1780019442000,-1369.70971348,0.000184,2]
[423280470,1780019442000,-20843.61,0.00018356,2]
[423280463,1780019442000,-300.0,0.00018355,2]
[423280466,1780019442000,-300.0,0.00018355,2]
[423280467,1780019442000,-300.0,0.00018355,2]
[423280465,1780019442000,-300.0,0.00018355,2]
[423280473,1780019442000,-5128.21605464,0.000184,2]
[423280471,1780019442000,-704.23141371,0.000184,2]
[423280480,1780019442000,-640.88249477,0.00018533,2]
[423280487,1780019442000,-300.0,0.000189,6]
[423280474,1780019442000,-167.89454848,0.00018407,7]
[423280479,1780019442000,-1369.70971348,0.000185,2]
[423280477,1780019442000,-785.86,0.00018495,2]
[423280482,1780019442000,-704.23141371,0.000187,2]
[423280484,1780019442000,-5128.21605464,0.000188,2]
[423280483,1780019442000,-1369.70971348,0.000187,2]
[423280485,1780019442000,-1369.70971348,0.000189,2]
[423280486,1780019442000,-5128.21605464,0.000189,2]
[423280490,1780019442000,-300.0,0.00018999,2]
[423280488,1780019442000,-462.0,0.00018904,2]
[423280489,1780019442000,-300.0,0.00018999,2]
[423280464,1780019442000,-300.0,0.00018355,2]
[423280476,1780019442000,-8056.7,0.0001841,2]
[423280469,1780019442000,-151.0,0.00018356,2]
[423280437,1780019442000,-462.0,0.0001726,2]
[423280459,1780019442000,-704.23141371,0.000182,2]
[423280491,1780019442000,-300.0,0.00018999,2]
[423280443,1780019442000,-300.0,0.00017727,2]
[423280439,1780019442000,-167.89454849,0.00017365,30]
[423280438,1780019442000,-167.89454848,0.00017365,7]
[423280442,1780019442000,-200.0,0.00017519,3]
[423280441,1780019442000,-2000.0,0.00017504,2]
[423280440,1780019442000,-2880.0,0.00017498,2]
[423280446,1780019442000,-5128.21605464,0.000178,2]
[423280444,1780019442000,-169.06,0.000178,2]
[423280445,1780019442000,-171.25,0.000178,2]
[423280448,1780019442000,-167.89454848,0.00017886,7]
[423280457,1780019442000,-169.55,0.00018043,2]
[423280458,1780019442000,-462.0,0.00018082,2]
[423280449,1780019442000,-167.89454849,0.00017886,30]
[423280447,1780019442000,-500.0,0.00017825,2]
[423280456,1780019442000,-151.0,0.00018,4]
[423280451,1780019442000,-971.31,0.0001793,2]
[423280450,1780019442000,-1089.3644648,0.0001789,2]
[423280452,1780019442000,-350.0,0.00018,2]
[423280453,1780019442000,-704.23141371,0.00018,2]
[423280454,1780019442000,-1369.70971348,0.00018,2]
[423280455,1780019442000,-5128.21605464,0.00018,2]
[423280460,1780019442000,-1369.70971348,0.000182,2]
[423280468,1780019442000,-280.44796258,0.00018355,2]
[423280462,1780019442000,-3265.75,0.000182,2]
[423280461,1780019442000,-5128.21605464,0.000182,2]
[423280494,1780019442000,-86603.52767817,0.00019,2]
[423280492,1780019442000,-310.82954872,0.00018999,2]
[423280503,1780019442000,-1779.0,0.00019,2]
[423280525,1780019442000,-519.155344,0.00019178,2]
[423280528,1780019442000,-150.0,0.00019178,2]
[423280540,1780019442000,-151.0,0.00019178,2]
[423280538,1780019442000,-151.0,0.00019178,2]
[423280529,1780019442000,-150.0,0.00019178,2]
[423280530,1780019442000,-150.0,0.00019178,2]
[423280532,1780019442000,-250.0,0.00019178,2]
[423280531,1780019442000,-211.67678875,0.00019178,2]
[423280541,1780019442000,-151.0,0.00019178,2]
[423280539,1780019442000,-151.0,0.00019178,2]
[423280533,1780019442000,-250.0,0.00019178,2]
[423280537,1780019442000,-151.0,0.00019178,2]
[423280524,1780019442000,-899.662535,0.00019178,2]
[423280536,1780019442000,-264.35860867,0.00019178,2]
[423280542,1780019442000,-151.0,0.00019178,2]
[423280552,1780019442000,-151.0,0.00019178,2]
[423280543,1780019442000,-151.0,0.00019178,2]
[423280548,1780019442000,-151.0,0.00019178,2]
[423280545,1780019442000,-151.0,0.00019178,2]
[423280544,1780019442000,-151.0,0.00019178,2]
[423280547,1780019442000,-151.0,0.00019178,2]
[423280546,1780019442000,-151.0,0.00019178,2]
[423280550,1780019442000,-151.0,0.00019178,2]
[423280551,1780019442000,-151.0,0.00019178,2]
[423280493,1780019442000,-462.75902818,0.00019,2]
[423280553,1780019442000,-151.0,0.00019178,2]
[423280534,1780019442000,-250.0,0.00019178,2]
[423280527,1780019442000,-160.93281423,0.00019178,2]
[423280549,1780019442000,-151.0,0.00019178,2]
[423280523,1780019442000,-519.155344,0.00019178,2]
[423280502,1780019442000,-5630.0,0.00019,2]
[423280495,1780019442000,-1506.68865664,0.00019,2]
[423280496,1780019442000,-2987.0,0.00019,2]
[423280499,1780019442000,-3749.0,0.00019,2]
[423280498,1780019442000,-1131.0,0.00019,2]
[423280500,1780019442000,-1371.0,0.00019,2]
[423280501,1780019442000,-1220.0,0.00019,2]
[423280526,1780019442000,-899.662535,0.00019178,2]
[423280505,1780019442000,-1566.0,0.00019,2]
[423280504,1780019442000,-395.0,0.00019,2]
[423280515,1780019442000,-1273.277115,0.00019178,2]
[423280506,1780019442000,-1847.0,0.00019,2]
[423280508,1780019442000,-3978.0,0.00019,2]
[423280497,1780019442000,-1198.0,0.00019,2]
[423280511,1780019442000,-160.32,0.00019095,2]
[423280507,1780019442000,-400.0,0.00019,2]
[423280520,1780019442000,-519.155344,0.00019178,2]
[423280519,1780019442000,-899.662535,0.00019178,2]
[423280517,1780019442000,-1273.277115,0.00019178,2]
[423280518,1780019442000,-519.155344,0.00019178,2]
[423280521,1780019442000,-899.662535,0.00019178,2]
[423280513,1780019442000,-5128.21605464,0.000191,2]
[423280512,1780019442000,-1369.70971348,0.000191,2]
[423280509,1780019442000,-151.0,0.00019,4]
[423280514,1780019442000,-1273.277115,0.00019178,2]
[423280510,1780019442000,-2000.0,0.00019095,2]
[423280516,1780019442000,-1273.277115,0.00019178,2]
[423280589,1780019443000,-667.030463,0.00019178,2]
[423280590,1780019443000,-667.030463,0.00019178,2]
[423280596,1780019443000,-674.088751,0.00019178,2]
[423280597,1780019443000,-674.088751,0.00019178,2]
[423280587,1780019443000,-667.030463,0.00019178,2]
[423280582,1780019443000,-197.910538,0.00019178,2]
[423280588,1780019443000,-667.030463,0.00019178,2]
[423280580,1780019443000,-151.0,0.00019178,2]
[423280583,1780019443000,-667.030463,0.00019178,2]
[423280581,1780019443000,-151.0,0.00019178,2]
[423280595,1780019443000,-674.088751,0.00019178,2]
[423280591,1780019443000,-674.088751,0.00019178,2]
[423280605,1780019443000,-301.087025,0.00019178,2]
[423280594,1780019443000,-674.088751,0.00019178,2]
[423280593,1780019443000,-674.088751,0.00019178,2]
[423280598,1780019443000,-674.088751,0.00019178,2]
[423280602,1780019443000,-301.087025,0.00019178,2]
[423280601,1780019443000,-301.087025,0.00019178,2]
[423280600,1780019443000,-301.087025,0.00019178,2]
[423280608,1780019443000,-928.0,0.00019291,2]
[423280609,1780019443000,-3574.066,0.00019291,2]
[423280599,1780019443000,-301.087025,0.00019178,2]
[423280604,1780019443000,-301.087025,0.00019178,2]
[423280603,1780019443000,-301.087025,0.00019178,2]
[423280578,1780019443000,-151.0,0.00019178,2]
[423280592,1780019443000,-674.088751,0.00019178,2]
[423280579,1780019443000,-151.0,0.00019178,2]
[423280567,1780019443000,-151.0,0.00019178,2]
[423280584,1780019443000,-667.030463,0.00019178,2]
[423280607,1780019443000,-1356.0,0.00019291,2]
[423280554,1780019443000,-151.0,0.00019178,2]
[423280558,1780019443000,-151.0,0.00019178,2]
[423280555,1780019443000,-151.0,0.00019178,2]
[423280557,1780019443000,-151.0,0.00019178,2]
[423280559,1780019443000,-151.0,0.00019178,2]
[423280563,1780019443000,-151.0,0.00019178,2]
[423280556,1780019443000,-151.0,0.00019178,2]
[423280561,1780019443000,-151.0,0.00019178,2]
[423280562,1780019443000,-151.0,0.00019178,2]
[423280560,1780019443000,-151.0,0.00019178,2]
[423280564,1780019443000,-151.0,0.00019178,2]
[423280566,1780019443000,-151.0,0.00019178,2]
[423280565,1780019443000,-151.0,0.00019178,2]
[423280568,1780019443000,-151.0,0.00019178,2]
[423280569,1780019443000,-151.0,0.00019178,2]
[423280570,1780019443000,-151.0,0.00019178,2]
[423280573,1780019443000,-151.0,0.00019178,2]
[423280572,1780019443000,-151.0,0.00019178,2]
[423280574,1780019443000,-151.0,0.00019178,2]
[423280571,1780019443000,-151.0,0.00019178,2]
[423280576,1780019443000,-151.0,0.00019178,2]
[423280575,1780019443000,-151.0,0.00019178,2]
[423280586,1780019443000,-667.030463,0.00019178,2]
[423280585,1780019443000,-667.030463,0.00019178,2]
[423280577,1780019443000,-151.0,0.00019178,2]
[423280612,1780019443000,-525.0,0.00019291,2]
[423280606,1780019443000,-301.087025,0.00019178,2]
[423280614,1780019443000,-418.0,0.00019291,2]
[423280650,1780019443000,-1312.94656269,0.0002,2]
[423280663,1780019443000,-192.07,0.0002,5]
[423280667,1780019443000,-400.0,0.0002,2]
[423280665,1780019443000,-431.30981009,0.0002,2]
[423280669,1780019443000,-2987.0,0.0002,2]
[423280679,1780019443000,-3265.75,0.0002,2]
[423280684,1780019443000,-1220.0,0.0002,2]
[423280685,1780019443000,-5630.0,0.0002,2]
[423280686,1780019443000,-150.37,0.0002,2]
[423280682,1780019443000,-1907.0,0.0002,2]
[423280673,1780019443000,-1198.0,0.0002,2]
[423280683,1780019443000,-1371.0,0.0002,2]
[423280687,1780019443000,-1779.0,0.0002,2]
[423280671,1780019443000,-1176.0,0.0002,2]
[423280675,1780019443000,-1131.0,0.0002,2]
[423280677,1780019443000,-3749.0,0.0002,2]
[423280689,1780019443000,-1566.0,0.0002,2]
[423280697,1780019443000,-614.64028937,0.0002,2]
[423280690,1780019443000,-5903.0,0.0002,2]
[423280688,1780019443000,-395.0,0.0002,2]
[423280691,1780019443000,-1847.0,0.0002,2]
[423280692,1780019443000,-400.0,0.0002,2]
[423280695,1780019443000,-2000.0,0.0002,7]
[423280693,1780019443000,-10488.45,0.0002,2]
[423280611,1780019443000,-1230.973,0.00019291,2]
[423280652,1780019443000,-200.0,0.0002,2]
[423280646,1780019443000,-300.0,0.00019999,2]
[423280696,1780019443000,-500.0,0.0002,2]
[423280659,1780019443000,-2638.59734204,0.0002,2]
[423280694,1780019443000,-150.0,0.0002,20]
[423280620,1780019443000,-246.27,0.000194,2]
[423280621,1780019443000,-255.895535,0.00019452,2]
[423280619,1780019443000,-5128.21605464,0.000193,2]
[423280613,1780019443000,-150.0,0.00019291,2]
[423280616,1780019443000,-160.825,0.00019291,2]
[423280618,1780019443000,-1369.70971348,0.000193,2]
[423280648,1780019443000,-199.29868437,0.0002,2]
[423280617,1780019443000,-932.0,0.00019291,2]
[423280615,1780019443000,-150.0,0.00019291,2]
[423280622,1780019443000,-1369.70971348,0.000195,2]
[423280624,1780019443000,-151.0,0.000195,2]
[423280625,1780019443000,-151.0,0.000195,2]
[423280610,1780019443000,-1272.0,0.00019291,2]
[423280623,1780019443000,-5128.21605464,0.000195,2]
[423280654,1780019443000,-1059.80881447,0.0002,2]
[423280627,1780019443000,-4101.394339,0.000195,2]
[423280644,1780019443000,-300.0,0.00019999,2]